bitfinex/quotes_SOLUSD_20250216
["timestamp","ask_amount","ask_price","bid_price","bid_amount"]
[1739714077936,8.13955792,191.04,190.94,13.41184853]
[1739714078337,8.13955792,191.04,190.95,0.78516496]
[1739714078639,8.13955792,191.04,190.95,14.19701349]
[1739714078834,8.13955792,191.04,190.99,20.0]
[1739714079041,8.13955792,191.04,191.0,4.52]
[1739714079443,0.063,191.04,191.0,4.52]
[1739714079635,0.063,191.04,190.99,20.0]
[1739714080539,0.063,191.04,190.96,13.41184853]
[1739714080746,0.063,191.04,190.94,3.3142]
[1739714081541,0.063,191.04,190.96,20.0]
[1739714084237,0.063,191.04,190.98,20.0]
[1739714084937,0.063,191.04,190.99,13.41184853]
[1739714085749,0.063,191.04,190.97,14.19678006]
[1739714086456,0.063,191.04,190.99,13.41184853]
[1739714087637,0.063,191.04,191.02,20.0]
[1739714088522,0.063,191.04,191.02,20.78484273]
[1739714088737,0.063,191.04,191.02,0.78484273]
[1739714089642,0.063,191.04,191.02,13.41184853]
[1739714090050,0.063,191.04,191.01,20.0]
[1739714094351,0.063,191.04,191.03,33.41184853]
[1739714094933,0.063,191.11,191.03,33.41184853]
[1739714095941,0.063,191.11,191.03,2.69562727]
[1739714096150,0.063,191.11,191.03,15.32273781]
[1739714096351,0.063,191.11,191.03,1.91088928]
[1739714096555,0.063,191.11,191.03,13.41184853]
[1739714096858,0.063,191.04,191.03,13.41184853]
[1739714097162,0.063,191.04,191.03,15.31792255]
[1739714098962,0.063,191.11,191.03,15.31792255]
[1739714099959,0.063,191.11,191.06,20.0]
[1739714101165,0.063,191.11,191.03,84.80607402]
[1739714102569,0.063,191.11,191.03,82.9]
[1739714105778,0.063,191.11,191.05,20.0]
[1739714108069,0.063,191.11,191.0,82.9]
[1739714111157,0.063,191.11,191.0,82.93]
[1739714114084,3.07191391,191.1,191.0,82.93]
[1739714114584,4.38083442,191.1,191.0,82.93]
[1739714115284,1.30892051,191.1,191.0,0.03]
[1739714116061,1.30892051,191.09,191.0,0.03]
[1739714117279,1.30892051,191.08,191.0,0.03]
[1739714118293,3.08250184,191.07,191.0,0.03]
[1739714118803,4.39142235,191.07,191.0,0.03]
[1739714119595,3.08250184,191.06,191.0,0.03]
[1739714120179,4.39142235,191.06,191.0,0.03]
[1739714120892,3.08250184,191.05,191.0,0.03]
[1739714121267,13.2249,191.04,191.0,0.03]
[1739714121695,14.53382051,191.04,191.0,0.03]
[1739714122197,3.08250184,191.03,191.0,0.03]
[1739714123100,4.39142235,191.03,191.0,0.03]
[1739714123295,3.08250184,191.02,191.0,0.03]
[1739714123609,3.08250184,191.02,190.95,0.03]
[1739714123972,1.30892051,191.03,190.95,0.03]
[1739714124496,13.2249,191.04,190.95,0.03]
[1739714128775,21.29159008,191.04,190.95,0.03]
[1739714129275,3.08363487,191.03,190.95,0.03]
[1739714130216,8.06669008,191.03,190.95,0.03]
[1739714131299,3.08267015,191.02,190.95,0.03]
[1739714131476,4.3921317,191.02,190.95,0.03]
[1739714131680,8.06669008,191.0,190.95,0.03]
[1739714132410,1.30946155,190.99,190.95,0.03]
[1739714133499,8.06669008,191.0,190.95,0.03]
[1739714133878,3.5596,190.99,190.95,0.03]
[1739714134791,3.0765593,190.98,190.95,0.03]
[1739714135011,13.41184853,190.97,190.95,0.03]
[1739714135305,25.66264853,190.96,190.95,0.03]
[1739714136001,28.73920783,190.96,190.95,0.03]
[1739714136379,28.73920783,190.96,190.84,20.0]
[1739714136879,30.04895002,190.96,190.84,20.0]
[1739714137300,3.0765593,190.95,190.83,0.03]
[1739714137811,13.41184853,190.94,190.83,0.03]
[1739714138177,3.0765593,190.95,190.83,0.03]
[1739714138511,1.30974219,190.94,190.83,0.03]
[1739714141788,12.2508,190.96,190.83,0.03]
[1739714142888,12.2508,190.96,190.85,20.0]
[1739714143310,8.06182964,190.98,190.85,20.0]
[1739714144594,44.84606033,191.0,190.85,20.0]
[1739714144905,44.84606033,191.0,190.86,37.65184853]
[1739714145102,44.84606033,191.0,190.9,20.0]
[1739714145316,32.26676033,191.0,190.9,20.0]
[1739714146599,3.4677,191.04,190.9,20.0]
[1739714147786,3.4677,191.04,190.9,20.03]
[1739714147987,3.06631755,191.03,190.9,20.03]
[1739714148187,3.4677,191.04,190.9,20.03]
[1739714148608,3.5307,191.04,190.9,20.03]
[1739714150086,4.37756414,191.03,190.9,20.03]
[1739714151312,1.30944946,191.03,190.9,20.03]
[1739714151609,1.30944946,191.02,190.9,20.03]
[1739714152911,1.30944946,191.02,190.94,20.0]
[1739714153111,1.30944946,191.03,190.94,20.0]
[1739714154507,0.063,191.04,190.95,13.41184853]
[1739714154709,0.063,191.04,190.98,20.0]
[1739714155602,0.063,191.04,190.91,3.2783]
[1739714156717,3.6023,191.03,190.91,3.2783]
[1739714157107,13.41184853,191.02,190.9,0.03]
[1739714157313,13.41184853,191.0,190.9,0.03]
[1739714158097,12.44181912,190.99,190.9,0.03]
[1739714158300,13.41184853,190.98,190.9,0.03]
[1739714159309,8.06182964,190.96,190.83,0.03]
[1739714159491,13.41184853,190.95,190.83,0.03]
[1739714160222,3.07055817,190.94,190.83,0.03]
[1739714160807,4.37998948,190.94,190.83,0.03]
[1739714161208,1.30943131,190.94,190.83,0.03]
[1739714161411,1.30943131,190.94,190.83,20.03]
[1739714162119,9.37126095,190.95,190.83,20.03]
[1739714162323,9.37126095,190.95,190.9,0.03]
[1739714162707,22.78310948,190.95,190.9,0.03]
[1739714163099,13.41184853,190.94,190.9,0.03]
[1739714163302,13.41184853,190.92,190.9,0.03]
[1739714164398,13.41184853,190.92,190.83,0.03]
[1739714165524,1.30943131,190.91,190.83,0.03]
[1739714168116,8.06182964,190.93,190.83,13.44184853]
[1739714168502,8.06182964,190.93,190.86,20.0]
[1739714168801,8.06182964,190.96,190.86,20.0]
[1739714169328,8.06182964,190.96,190.86,23.3604]
[1739714170345,21.02162964,190.98,190.86,23.3604]
[1739714171953,3.07093049,190.97,190.86,23.3604]
[1739714172442,4.38070681,190.97,190.86,23.3604]
[1739714173712,1.30977632,190.97,190.86,23.3604]
[1739714174129,21.02162964,190.98,190.86,23.3604]
[1739714174820,0.063,190.97,190.86,23.3604]
[1739714177347,3.07314656,190.96,190.86,23.3604]
[1739714177719,4.38298497,190.96,190.86,23.3604]
[1739714177920,4.38298497,190.96,190.87,13.41184853]
[1739714178317,4.38298497,190.96,190.91,20.0]
[1739714178851,4.38298497,190.96,190.91,19.5]
[1739714178852,1.30983841,190.96,190.91,19.5]
[1739714179009,8.12482964,190.97,190.91,19.5]
[1739714179214,0.063,190.97,190.91,19.5]
[1739714180217,3.6164,190.96,190.87,4.54043613]
[1739714180418,3.6164,190.96,190.83,0.03]
[1739714181018,3.07307315,190.95,190.83,0.03]
[1739714181445,4.38306122,190.95,190.83,0.03]
[1739714182242,3.07307315,190.94,190.83,0.03]
[1739714182656,11.13490279,190.94,190.83,13.44184853]
[1739714182820,12.44489086,190.94,190.83,13.44184853]
[1739714183021,12.44489086,190.94,190.86,20.0]
[1739714183548,9.37181771,190.94,190.86,20.0]
[1739714183925,8.06182964,190.95,190.86,20.0]
[1739714184937,8.06182964,190.95,190.87,13.41184853]
[1739714185447,8.06182964,190.96,190.9,20.0]
[1739714187062,0.063,190.97,190.9,20.0]
[1739714188373,0.063,190.97,190.87,13.41184853]
[1739714189579,0.063,190.97,190.9,20.0]
[1739714189744,8.12482964,190.97,190.9,20.0]
[1739714190850,0.063,190.97,190.9,20.0]
[1739714192548,0.063,190.97,190.86,0.03]
[1739714193758,12.6205,190.96,190.86,0.03]
[1739714194761,1.30999833,190.95,190.86,0.03]
[1739714194961,8.06182964,190.94,190.86,0.03]
[1739714195789,3.07565168,190.93,190.86,0.03]
[1739714196164,4.38565001,190.93,190.86,0.03]
[1739714197086,3.07565168,190.92,190.86,0.03]
[1739714197379,4.38565001,190.92,190.86,0.03]
[1739714198475,1.30999833,190.92,190.86,0.03]
[1739714199068,8.06182964,190.94,190.86,0.03]
[1739714200098,8.06182964,190.94,190.86,20.03]
[1739714200591,12.6205,190.96,190.86,20.03]
[1739714200751,12.6205,190.96,190.86,0.03]
[1739714200954,3.07792928,190.95,190.86,0.03]
[1739714201494,4.38780925,190.95,190.86,0.03]
[1739714202579,3.07792928,190.94,190.86,0.03]
[1739714202983,4.38780925,190.94,190.86,0.03]
[1739714203768,1.30987997,190.93,190.86,0.03]
[1739714203956,4.38780925,190.93,190.86,0.03]
[1739714204680,12.6962,190.9,190.86,0.03]
[1739714205968,3.07792928,190.89,190.86,0.03]
[1739714206887,4.38780925,190.89,190.86,0.03]
[1739714208485,1.30987997,190.88,190.86,0.03]
[1739714210089,1.30987997,190.89,190.86,0.03]
[1739714211179,1.30987997,190.88,190.86,0.03]
[1739714212072,3.07540788,190.87,190.86,0.03]
[1739714212271,4.38584919,190.87,190.86,0.03]
[1739714213660,4.38584919,190.87,190.83,0.03]
[1739714214077,4.38584919,190.87,190.86,0.03]
[1739714214559,1.31044131,190.87,190.86,0.03]
[1739714215992,4.38095112,190.87,190.86,0.03]
[1739714220584,3.07050981,190.87,190.86,0.03]
[1739714221287,8.12482964,190.91,190.86,0.03]
[1739714221488,0.063,190.91,190.86,0.03]
[1739714221974,3.06828708,190.9,190.86,0.03]
[1739714222177,4.37859387,190.9,190.86,0.03]
[1739714222567,13.41184853,190.89,190.86,0.03]
[1739714222773,12.132,190.88,190.86,0.03]
[1739714223600,1.31030679,190.87,190.86,0.03]
[1739714225384,12.132,190.88,190.86,0.03]
[1739714226595,0.063,190.91,190.86,0.03]
[1739714227397,0.063,190.9,190.86,0.03]
[1739714227601,16.3802,190.89,190.86,0.03]
[1739714228381,3.0693301,190.88,190.86,0.03]
[1739714229695,1.31041544,190.87,190.86,0.03]
[1739714232897,3.07212751,190.87,190.86,0.03]
[1739714234608,4.38254295,190.87,190.86,0.03]
[1739714234978,1.31041544,190.87,190.86,0.03]
[1739714235824,1.31041544,190.89,190.86,0.03]
[1739714236197,4.3869692,190.89,190.86,0.03]
[1739714237303,1.31041544,190.88,190.86,0.03]
[1739714238314,1.31041544,190.88,190.86,20.03]
[1739714238816,0.063,190.9,190.86,20.03]
[1739714239017,0.063,190.9,190.86,0.03]
[1739714240417,0.063,190.89,190.86,0.03]
[1739714246126,0.063,190.89,190.88,20.0]
[1739714246320,0.063,190.89,190.88,33.41184853]
[1739714246506,0.063,190.89,190.88,36.85014853]
[1739714246711,0.063,190.89,190.88,23.4383]
[1739714247107,0.063,190.89,190.88,3.4383]
[1739714257840,0.063,190.89,190.88,20.0]
[1739714262553,0.063,190.89,190.88,33.41184853]
[1739714263061,0.063,190.97,190.92,20.0]
[1739714263231,0.063,190.97,190.93,13.41184853]
[1739714266249,0.063,190.97,190.93,16.71624853]
[1739714266648,0.063,190.97,190.91,20.0]
[1739714267336,0.063,190.97,190.92,20.0]
[1739714271458,0.063,190.97,190.92,20.0]
[1739714275577,0.063,190.97,190.91,20.0]
[1739714277566,0.063,190.97,190.92,13.41184853]
[1739714277751,0.063,190.97,190.91,20.0]
[1739714278072,0.063,190.97,190.92,13.41184853]
[1739714279271,0.063,190.97,190.93,13.41184853]
[1739714279946,0.063,190.97,190.91,33.44184853]
[1739714280458,0.063,190.97,190.96,20.0]
[1739714281269,0.063,190.97,190.96,33.41184853]
[1739714283051,0.063,191.04,190.96,33.41184853]
[1739714283278,0.063,191.04,190.97,16.78094853]
[1739714284160,0.063,191.04,191.01,13.41184853]
[1739714284474,0.063,191.04,190.99,13.41184853]
[1739714284847,0.063,191.04,191.01,20.0]
[1739714287176,0.063,191.04,190.97,3.3691]
[1739714287481,0.063,191.04,190.98,20.0]
[1739714289474,0.063,191.04,190.95,13.41184853]
[1739714289776,0.063,191.04,190.95,15.42301409]
[1739714291479,0.063,191.04,190.93,3.2798]
[1739714291867,0.063,191.04,190.94,13.41184853]
[1739714292179,0.063,191.04,190.92,2.05468166]
[1739714292386,0.063,191.04,190.91,0.03]
[1739714292677,4.38461234,191.03,190.95,0.03]
[1739714293659,3.07532536,191.02,190.95,0.03]
[1739714294276,4.38461234,191.02,190.95,0.03]
[1739714294557,12.2378,191.01,190.95,0.03]
[1739714294977,15.31312536,191.01,190.95,0.03]
[1739714295893,1.30928698,191.0,190.95,0.03]
[1739714296387,7.88291234,191.0,190.95,0.03]
[1739714297179,1.30928698,190.99,190.95,0.03]
[1739714297390,4.38461234,190.99,190.95,0.03]
[1739714298162,4.38461234,190.99,190.83,1.03]
[1739714298163,13.41184853,190.92,190.86,0.03]
[1739714298668,3.07532536,190.91,190.86,0.03]
[1739714299678,13.41184853,190.9,190.86,0.03]
[1739714299860,14.72113551,190.9,190.86,0.03]
[1739714300076,17.79646087,190.9,190.86,0.03]
[1739714301469,3.07532536,190.89,190.86,0.03]
[1739714301671,4.38461234,190.89,190.86,0.03]
[1739714302482,3.07532536,190.88,190.83,0.03]
[1739714303062,4.38461234,190.88,190.83,0.03]
[1739714304303,1.30928698,190.88,190.83,0.03]
[1739714304465,13.41184853,190.92,190.83,0.03]
[1739714305572,13.41184853,190.9,190.83,0.03]
[1739714307161,13.41184853,190.92,190.83,0.03]
[1739714308403,50.58473364,190.92,190.83,0.03]
[1739714309391,13.41184853,190.9,190.83,0.03]
[1739714313781,37.17288511,190.92,190.83,0.03]
[1739714314182,13.41184853,190.91,190.83,0.03]
[1739714314495,37.17288511,190.92,190.83,0.03]
[1739714318299,15.2498,190.93,190.83,0.03]
[1739714319096,0.063,190.92,190.83,0.03]
[1739714322303,13.47484853,190.92,190.83,0.03]
[1739714329096,1.31040994,190.91,190.83,0.03]
[1739714330814,13.41184853,190.89,190.83,0.03]
[1739714331004,3.583,190.9,190.83,0.03]
[1739714331709,14.72225847,190.89,190.83,0.03]
[1739714333112,13.41184853,190.89,190.83,0.03]
[1739714333417,3.583,190.9,190.83,0.03]
[1739714334203,0.063,190.92,190.83,0.03]
[1739714335701,1.31024193,190.91,190.83,0.03]
[1739714336026,4.3753764,190.91,190.83,0.03]
[1739714337214,4.3753764,190.9,190.83,0.03]
[1739714338538,4.3753764,190.89,190.83,0.03]
[1739714339706,4.3753764,190.88,190.83,0.03]
[1739714341332,3.06513447,190.87,190.83,0.03]
[1739714341740,4.3753764,190.87,190.83,0.03]
[1739714342817,3.06513447,190.86,190.83,0.03]
[1739714343213,12.3628,190.85,190.83,0.03]
[1739714344339,4.3753764,190.84,190.83,0.03]
[1739714346642,4.3753764,190.84,190.75,0.03]
[1739714347524,1.31024193,190.83,190.75,0.03]
[1739714349143,0.063,190.87,190.75,0.03]
[1739714350351,1.3102856,190.86,190.75,0.03]
[1739714350950,4.39452147,190.86,190.75,0.03]
[1739714351621,1.3102856,190.85,190.75,0.03]
[1739714352247,3.08423587,190.84,190.75,0.03]
[1739714353469,3.08423587,190.84,190.78,13.41184853]
[1739714353841,8.12482964,190.87,190.78,13.41184853]
[1739714354342,0.063,190.87,190.78,13.41184853]
[1739714355450,3.08557669,190.86,190.78,13.41184853]
[1739714356050,4.39586422,190.86,190.78,13.41184853]
[1739714356552,1.31028753,190.86,190.78,13.41184853]
[1739714357440,1.31028753,190.85,190.78,13.41184853]
[1739714359060,0.063,190.87,190.78,13.41184853]
[1739714360126,3.08578157,190.86,190.78,13.41184853]
[1739714360458,4.39606681,190.86,190.78,13.41184853]
[1739714361424,1.31028524,190.85,190.78,13.41184853]
[1739714361632,1.31028524,190.85,190.78,13.44184853]
[1739714362362,1.31028524,190.85,190.78,0.03]
[1739714362945,0.063,190.86,190.78,0.03]
[1739714363956,3.08506588,190.85,190.78,0.03]
[1739714364861,3.08506588,190.84,190.78,0.03]
[1739714365964,4.39559936,190.83,190.78,0.03]
[1739714366876,3.08506588,190.82,190.78,0.03]
[1739714367056,4.39559936,190.82,190.78,0.03]
[1739714367766,1.31053348,190.82,190.78,0.03]
[1739714368650,1.31053348,190.81,190.78,0.03]
[1739714369869,11.55242964,190.86,190.78,0.03]
[1739714370253,3.08420325,190.85,190.78,0.03]
[1739714371451,1.31082829,190.84,190.78,0.03]
[1739714371661,8.06182964,190.83,190.78,0.03]
[1739714372764,1.31082829,190.82,190.78,0.03]
[1739714373457,3.08420325,190.81,190.78,0.03]
[1739714373658,4.39503154,190.81,190.78,0.03]
[1739714374776,4.39503154,190.8,190.78,0.03]
[1739714375784,4.39503154,190.79,190.78,0.03]
[1739714376863,1.31082829,190.79,190.78,0.03]
[1739714379788,1.31082829,190.81,190.78,0.03]
[1739714381693,0.063,190.83,190.78,0.03]
[1739714385194,0.063,190.83,190.78,3.5185]
[1739714396973,0.063,190.83,190.79,20.0]
[1739714399290,15.6544,190.82,190.78,0.03]
[1739714401089,13.41184853,190.81,190.78,0.03]
[1739714401309,16.48931738,190.81,190.78,0.03]
[1739714401975,1.31089959,190.8,190.78,0.03]
[1739714402404,13.41184853,190.76,190.75,0.03]
[1739714402612,12.1967,190.77,190.75,0.03]
[1739714402779,3.9806,190.76,190.59,3.5914]
[1739714402985,13.41184853,190.73,190.59,3.5914]
[1739714403184,13.41184853,190.73,190.58,83.05]
[1739714403384,13.41184853,190.71,190.58,83.05]
[1739714403587,13.41184853,190.69,190.58,0.03]
[1739714404621,13.41184853,190.67,190.58,0.03]
[1739714404783,14.41184853,190.67,190.58,0.03]
[1739714405207,13.41184853,190.65,190.58,0.03]
[1739714405885,14.41184853,190.65,190.58,0.03]
[1739714406089,15.27416885,190.66,190.58,0.03]
[1739714406090,16.86954853,190.61,190.58,0.03]
[1739714406887,13.41184853,190.59,190.58,0.03]
[1739714407788,14.41184853,190.59,190.43,2.07024059]
[1739714407984,13.41184853,190.56,190.43,2.07024059]
[1739714408299,13.41184853,190.59,190.43,2.07024059]
[1739714408300,13.41184853,190.58,190.46,1.0]
[1739714408500,13.1967,190.6,190.46,1.0]
[1739714408808,12.1967,190.6,190.46,1.0]
[1739714409518,13.41184853,190.59,190.46,1.0]
[1739714410027,13.41184853,190.59,190.45,20.0]
[1739714410327,13.41184853,190.59,190.46,1.0]
[1739714413100,13.41184853,190.59,190.45,20.0]
[1739714413423,13.41184853,190.59,190.46,1.0]
[1739714413626,1.0,190.59,190.42,3.83187288]
[1739714413826,1.0,190.59,190.42,4.83187288]
[1739714414021,13.41184853,190.58,190.42,4.83187288]
[1739714414239,13.41184853,190.58,190.42,3.83187288]
[1739714414414,13.41184853,190.58,190.42,4.83187288]
[1739714414735,13.41184853,190.58,190.42,3.83187288]
[1739714414942,13.41184853,190.58,190.42,4.83187288]
[1739714415606,13.41184853,190.58,190.43,20.0]
[1739714417033,13.41184853,190.59,190.43,20.0]
[1739714417701,13.41184853,190.59,190.42,23.83187288]
[1739714418626,13.41184853,190.59,190.43,0.03]
[1739714419626,1.0,190.58,190.43,0.03]
[1739714422841,13.41184853,190.56,190.43,0.03]
[1739714423505,16.82864853,190.54,190.43,0.03]
[1739714426116,17.82864853,190.54,190.43,0.03]
[1739714426430,3.4168,190.47,190.43,0.03]
[1739714426637,13.41184853,190.46,190.43,0.03]
[1739714427638,14.41184853,190.46,190.43,0.03]
[1739714427820,13.41184853,190.44,190.43,0.03]
[1739714428136,13.41184853,190.42,190.38,0.03]
[1739714428556,14.41184853,190.42,190.38,0.03]
[1739714428839,13.41184853,190.42,190.38,0.03]
[1739714429341,13.1578,190.43,190.38,0.03]
[1739714429520,16.5746,190.47,190.38,0.03]
[1739714430451,13.41184853,190.46,190.38,0.03]
[1739714430748,13.41184853,190.43,190.33,25.18228444]
[1739714431111,16.5746,190.47,190.33,25.18228444]
[1739714431530,16.5746,190.47,190.38,0.03]
[1739714431739,13.41184853,190.46,190.38,0.03]
[1739714432444,14.41184853,190.46,190.38,0.03]
[1739714433524,13.41184853,190.46,190.38,0.03]
[1739714433723,16.5746,190.47,190.33,6.96671741]
[1739714434541,13.41184853,190.46,190.33,6.96671741]
[1739714436839,13.1578,190.52,190.37,20.0]
[1739714437039,13.1578,190.52,190.38,20.0]
[1739714437247,13.1578,190.52,190.39,13.41184853]
[1739714437550,13.1578,190.52,190.39,1.0]
[1739714437849,13.41184853,190.56,190.4,23.4863]
[1739714438454,49.40860328,190.57,190.41,21.0]
[1739714439357,49.40860328,190.57,190.41,20.0]
[1739714440162,13.41184853,190.56,190.41,20.0]
[1739714440941,13.41184853,190.56,190.4,3.4863]
[1739714445043,4.34460807,190.54,190.4,3.4863]
[1739714445435,3.03166733,190.53,190.4,3.4863]
[1739714446147,4.34460807,190.53,190.4,3.4863]
[1739714446355,13.41184853,190.52,190.36,3.4863]
[1739714446931,3.03166733,190.52,190.36,3.4863]
[1739714447233,1.31294074,190.51,190.39,20.0]
[1739714447852,3.03166733,190.5,190.39,20.0]
[1739714448161,3.03166733,190.5,190.38,20.0]
[1739714448551,3.03166733,190.5,190.36,3.4863]
[1739714449262,1.31294074,190.49,190.37,20.0]
[1739714449570,4.34460807,190.49,190.37,20.0]
[1739714449965,1.31294074,190.48,190.37,20.0]
[1739714450873,1.31294074,190.47,190.37,20.0]
[1739714451174,4.34460807,190.47,190.37,20.0]
[1739714452262,4.34460807,190.46,190.36,3.4863]
[1739714453449,3.03166733,190.45,190.36,3.4863]
[1739714453650,4.34460807,190.45,190.36,3.4863]
[1739714454852,12.1631,190.49,190.36,3.4863]
[1739714456161,3.05804804,190.48,190.36,3.4863]
[1739714456658,4.37117624,190.48,190.36,3.4863]
[1739714457267,1.3131282,190.48,190.37,20.0]
[1739714457860,1.3131282,190.47,190.37,20.0]
[1739714458272,1.3131282,190.47,190.38,20.0]
[1739714459771,1.3131282,190.52,190.38,20.0]
[1739714460377,1.3131282,190.52,190.39,13.41184853]
[1739714460564,1.3131282,190.52,190.43,3.5224]
[1739714460759,1.3131282,190.52,190.46,20.0]
[1739714460949,1.3131282,190.54,190.46,20.0]
[1739714462657,1.3131282,190.54,190.43,16.6222]
[1739714463262,1.3131282,190.54,190.44,13.41184853]
[1739714463861,1.3131282,190.54,190.43,16.6222]
[1739714464267,3.3516,190.52,190.32,1.0]
[1739714464566,13.41184853,190.51,190.31,3.5224]
[1739714464768,13.41184853,190.51,190.31,5.5224]
[1739714464969,16.47204788,190.51,190.32,13.41184853]
[1739714465279,17.78517608,190.51,190.32,13.41184853]
[1739714466472,3.06019935,190.5,190.32,13.41184853]
[1739714466678,4.37332755,190.5,190.34,14.41184853]
[1739714467483,4.37332755,190.5,190.33,7.99671741]
[1739714467484,12.3956,190.47,190.33,6.99671741]
[1739714467655,13.41184853,190.46,190.33,6.99671741]
[1739714468059,49.66665422,190.47,190.33,6.99671741]
[1739714468794,3.05962313,190.46,190.33,6.99671741]
[1739714469095,4.37275133,190.46,190.33,6.99671741]
[1739714470188,3.05962313,190.45,190.33,6.99671741]
[1739714470563,13.41184853,190.44,190.33,6.99671741]
[1739714471172,14.41184853,190.44,190.33,6.99671741]
[1739714471371,5.37275133,190.45,190.33,6.99671741]
[1739714471372,13.41184853,190.38,190.33,6.99671741]
[1739714471577,13.41184853,190.4,190.33,6.99671741]
[1739714472374,3.2778,190.41,190.33,6.99671741]
[1739714472870,4.37275133,190.39,190.33,6.99671741]
[1739714473970,3.05962313,190.38,190.33,6.99671741]
[1739714475180,8.06182964,190.46,190.33,6.99671741]
[1739714475989,8.06182964,190.46,190.37,20.0]
[1739714476490,12.9879,190.48,190.37,20.0]
[1739714477794,3.2778,190.51,190.37,20.0]
[1739714478497,1.3130364,190.5,190.37,20.0]
[1739714481117,1.3130364,190.5,190.37,20.0]
[1739714481596,1.3130364,190.51,190.37,20.0]
[1739714481787,13.41184853,190.5,190.33,6.99671741]
[1739714481994,13.41184853,190.48,190.33,6.99671741]
[1739714482384,13.41184853,190.46,190.33,6.99671741]
[1739714483076,14.41184853,190.46,190.33,6.99671741]
[1739714483899,13.41184853,190.44,190.33,6.99671741]
[1739714484094,13.41184853,190.42,190.33,6.99671741]
[1739714484580,4.36576832,190.45,190.33,6.99671741]
[1739714484994,13.41184853,190.44,190.33,6.99671741]
[1739714485212,17.46458045,190.44,190.33,6.99671741]
[1739714486017,1.3130364,190.43,190.33,6.99671741]
[1739714486418,4.36576832,190.43,190.33,6.99671741]
[1739714486921,13.41184853,190.4,190.33,6.99671741]
[1739714487418,3.6143,190.39,190.33,6.99671741]
[1739714487798,13.41184853,190.38,190.33,6.99671741]
[1739714488701,6.66703192,190.39,190.33,6.99671741]
[1739714489017,3.05273192,190.37,190.33,6.99671741]
[1739714489317,4.36576832,190.37,190.33,6.99671741]
[1739714490392,1.3130364,190.37,190.33,6.99671741]
[1739714490821,3.6143,190.39,190.33,6.99671741]
[1739714492421,13.41184853,190.38,190.33,6.99671741]
[1739714493120,3.6143,190.39,190.33,6.99671741]
[1739714493725,16.45450018,190.38,190.33,6.99671741]
[1739714494097,17.76851718,190.38,190.33,6.99671741]
[1739714494923,17.76851718,190.38,190.33,6.96671741]
[1739714495419,14.72586553,190.38,190.33,6.96671741]
[1739714495893,13.41184853,190.36,190.33,6.96671741]
[1739714496727,1.314017,190.37,190.33,6.96671741]
[1739714497119,3.6143,190.39,190.33,6.96671741]
[1739714498939,13.41184853,190.38,190.33,6.96671741]
[1739714502014,13.41184853,190.38,190.33,6.46671741]
[1739714506337,0.063,190.48,190.33,10.03521741]
[1739714507957,13.41184853,190.46,190.33,10.03521741]
[1739714508321,27.77310496,190.46,190.33,10.06521741]
[1739714508736,0.063,190.39,190.33,10.06521741]
[1739714510042,0.063,190.39,190.34,1.0]
[1739714510235,0.063,190.39,190.35,1.0]
[1739714510432,0.063,190.39,190.36,1.0]
[1739714510649,0.063,190.48,190.37,21.0]
[1739714512446,0.063,190.48,190.33,93.30521741]
[1739714514136,14.47484853,190.48,190.33,89.73671741]
[1739714514324,13.41184853,190.46,190.33,89.73671741]
[1739714514636,14.41184853,190.46,190.33,6.49671741]
[1739714515448,13.41184853,190.44,190.33,6.49671741]
[1739714516560,3.04343751,190.43,190.33,6.49671741]
[1739714516756,4.35683973,190.43,190.33,6.49671741]
[1739714517762,1.31340222,190.43,190.33,6.49671741]